[Event "Titled Tuesday Blitz August 15 Late 2023"]
[White "Bjelobrk, Igor"]
[Black "Ghazarian, Kirk"]
[WhiteFideId "4300726"]
[BlackFideId "30908604"]
[WhiteElo "2682"]
[BlackElo "2758"]
[Result "1-0"]
[Round "10"]
[TimeControl "180+1"]
[Date "2023.08.15"]
[WhiteClock "0:01:25"]
[BlackClock "0:00:51"]
[Board "21"]

1. d4 {[%clk 0:02:53]}  d5 {[%clk 0:02:59]} 2. c4 {[%clk 0:02:53]}  e6 {[%clk 0:03:00]} 3. Nf3 {[%clk 0:02:52]}  a6 {[%clk 0:03:00]} 4. g3 {[%clk 0:02:48]}  dxc4 {[%clk 0:02:59]} 5. Bg2 {[%clk 0:02:47]}  c5 {[%clk 0:02:59]} 6. O-O {[%clk 0:02:46]}  cxd4 {[%clk 0:02:55]} 7. Ne5 {[%clk 0:02:36]}  Nf6 {[%clk 0:02:49]} 8. Na3 {[%clk 0:02:34]}  Bxa3 {[%clk 0:02:44]} 9. bxa3 {[%clk 0:02:26]}  c3 {[%clk 0:02:41]} 10. Rb1 {[%clk 0:02:20]}  O-O {[%clk 0:02:37]} 11. Rb4 {[%clk 0:02:13]}  Nbd7 {[%clk 0:02:26]} 12. Qxd4 {[%clk 0:02:03]}  Nxe5 {[%clk 0:02:10]} 13. Qxe5 {[%clk 0:02:04]}  c2 {[%clk 0:01:53]} 14. Bb2 {[%clk 0:02:00]}  Bd7 {[%clk 0:01:47]} 15. Rg4 {[%clk 0:01:57]}  h6 {[%clk 0:01:32]} 16. Qxf6 {[%clk 0:01:53]}  Qxf6 {[%clk 0:01:29]} 17. Bxf6 {[%clk 0:01:54]}  g5 {[%clk 0:01:25]} 18. Rc1 {[%clk 0:01:48]}  Rac8 {[%clk 0:01:22]} 19. Bxb7 {[%clk 0:01:47]}  Rc7 {[%clk 0:01:21]} 20. Bxa6 {[%clk 0:01:45]}  Rb8 {[%clk 0:01:15]} 21. Rb4 {[%clk 0:01:32]}  Rxb4 {[%clk 0:00:58]} 22. axb4 {[%clk 0:01:33]}  Ba4 {[%clk 0:00:59]} 23. Kf1 {[%clk 0:01:26]}  Rd7 {[%clk 0:00:51]} 24. Bd3 {[%clk 0:01:25]}  Rc7 {[%clk 0:00:51]} 25. Ke1 {[%clk 0:01:25]} 1-0


[Site "https://www.chess.com"]

[Event "Titled Tuesday Blitz August 15 Late 2023"]
[White "Mikhailov, Viacheslav"]
[Black "Soderstrom, Adrian"]
[WhiteFideId "4187369"]
[BlackFideId "1745786"]
[WhiteElo "2736"]
[BlackElo "2621"]
[Result "1-0"]
[Round "10"]
[TimeControl "180+1"]
[Date "2023.08.15"]
[WhiteClock "0:00:20"]
[BlackClock "0:00:36"]
[Board "23"]

1. Nf3 {[%clk 0:02:59]}  g5 {[%clk 0:02:59]} 2. Nxg5 {[%clk 0:02:57]}  e5 {[%clk 0:02:58]} 3. Ne4 {[%clk 0:02:57]}  d5 {[%clk 0:02:59]} 4. Ng3 {[%clk 0:02:58]}  h5 {[%clk 0:02:58]} 5. e4 {[%clk 0:02:47]}  h4 {[%clk 0:02:57]} 6. Nf5 {[%clk 0:02:45]}  dxe4 {[%clk 0:02:57]} 7. Ne3 {[%clk 0:02:45]}  f5 {[%clk 0:02:55]} 8. Be2 {[%clk 0:02:37]}  Nf6 {[%clk 0:02:52]} 9. d3 {[%clk 0:02:34]}  h3 {[%clk 0:02:46]} 10. dxe4 {[%clk 0:02:22]}  Qxd1+ {[%clk 0:02:45]} 11. Bxd1 {[%clk 0:02:23]}  hxg2 {[%clk 0:02:46]} 12. Nxg2 {[%clk 0:02:23]}  Nxe4 {[%clk 0:02:43]} 13. Nd2 {[%clk 0:02:22]}  Nc6 {[%clk 0:02:38]} 14. Nxe4 {[%clk 0:02:21]}  fxe4 {[%clk 0:02:38]} 15. h4 {[%clk 0:02:18]}  Nd4 {[%clk 0:02:36]} 16. Bg5 {[%clk 0:02:15]}  Be7 {[%clk 0:02:27]} 17. Bxe7 {[%clk 0:02:13]}  Kxe7 {[%clk 0:02:27]} 18. c3 {[%clk 0:02:08]}  Nf3+ {[%clk 0:02:25]} 19. Bxf3 {[%clk 0:01:55]}  exf3 {[%clk 0:02:26]} 20. Ne3 {[%clk 0:01:56]}  Be6 {[%clk 0:02:25]} 21. O-O-O {[%clk 0:01:54]}  Rh5 {[%clk 0:02:14]} 22. Rdg1 {[%clk 0:01:48]}  Rah8 {[%clk 0:02:05]} 23. Rg7+ {[%clk 0:01:47]}  Bf7 {[%clk 0:02:05]} 24. Re1 {[%clk 0:01:34]}  Kf6 {[%clk 0:01:58]} 25. Rg3 {[%clk 0:01:33]}  Be6 {[%clk 0:01:49]} 26. Rxf3+ {[%clk 0:01:31]}  Ke7 {[%clk 0:01:46]} 27. Rg3 {[%clk 0:01:17]}  Rxh4 {[%clk 0:01:40]} 28. Rg7+ {[%clk 0:01:17]}  Bf7 {[%clk 0:01:41]} 29. Nf5+ {[%clk 0:01:14]}  Kf6 {[%clk 0:01:41]} 30. Rxf7+ {[%clk 0:01:12]}  Kxf7 {[%clk 0:01:41]} 31. Nxh4 {[%clk 0:01:13]}  Rxh4 {[%clk 0:01:41]} 32. Rxe5 {[%clk 0:01:13]}  Rh2 {[%clk 0:01:37]} 33. Rf5+ {[%clk 0:01:11]}  Ke6 {[%clk 0:01:37]} 34. Rf3 {[%clk 0:01:11]}  a5 {[%clk 0:01:36]} 35. Kc2 {[%clk 0:01:09]}  a4 {[%clk 0:01:36]} 36. Kd3 {[%clk 0:01:06]}  Rh1 {[%clk 0:01:36]} 37. Re3+ {[%clk 0:01:06]}  Kd6 {[%clk 0:01:35]} 38. Re2 {[%clk 0:01:03]}  b5 {[%clk 0:01:33]} 39. Kc2 {[%clk 0:01:01]}  Rf1 {[%clk 0:01:32]} 40. a3 {[%clk 0:00:58]}  c5 {[%clk 0:01:32]} 41. Kd3 {[%clk 0:00:56]}  Rd1+ {[%clk 0:01:31]} 42. Ke4 {[%clk 0:00:56]}  Ke6 {[%clk 0:01:21]} 43. f4 {[%clk 0:00:44]}  Rf1 {[%clk 0:01:18]} 44. Rh2 {[%clk 0:00:35]}  Re1+ {[%clk 0:01:18]} 45. Kf3 {[%clk 0:00:35]}  Kd5 {[%clk 0:01:18]} 46. Rd2+ {[%clk 0:00:28]}  Kc4 {[%clk 0:01:18]} 47. f5 {[%clk 0:00:29]}  Re5 {[%clk 0:00:50]} 48. Kf4 {[%clk 0:00:27]}  Re1 {[%clk 0:00:51]} 49. f6 {[%clk 0:00:26]}  Rf1+ {[%clk 0:00:51]} 50. Ke5 {[%clk 0:00:26]}  Kb3 {[%clk 0:00:45]} 51. Ke6 {[%clk 0:00:23]}  b4 {[%clk 0:00:44]} 52. cxb4 {[%clk 0:00:20]}  cxb4 {[%clk 0:00:45]} 53. axb4 {[%clk 0:00:21]}  Kxb4 {[%clk 0:00:45]} 54. Rd4+ {[%clk 0:00:17]}  Kb3 {[%clk 0:00:45]} 55. f7 {[%clk 0:00:18]}  Re1+ {[%clk 0:00:42]} 56. Kf5 {[%clk 0:00:18]}  Rf1+ {[%clk 0:00:39]} 57. Rf4 {[%clk 0:00:18]}  Rxf4+ {[%clk 0:00:39]} 58. Kxf4 {[%clk 0:00:19]}  Kxb2 {[%clk 0:00:40]} 59. f8=Q {[%clk 0:00:20]}  a3 {[%clk 0:00:36]} 60. Qb4+ {[%clk 0:00:20]} 1-0


[Site "https://www.chess.com"]

[Event "Titled Tuesday Blitz August 15 Late 2023"]
[White "Manukyan, Sargis A."]
[Black "Djordjevic, Vuk"]
[WhiteFideId "13303970"]
[BlackFideId "902098"]
[WhiteElo "2610"]
[BlackElo "2713"]
[Result "1-0"]
[Round "10"]
[TimeControl "180+1"]
[Date "2023.08.15"]
[WhiteClock "0:00:20"]
[BlackClock "0:00:01"]
[Board "24"]

1. d4 {[%clk 0:03:00]}  Nf6 {[%clk 0:02:59]} 2. c4 {[%clk 0:03:01]}  e6 {[%clk 0:02:59]} 3. Nc3 {[%clk 0:03:02]}  Bb4 {[%clk 0:02:59]} 4. e3 {[%clk 0:03:02]}  O-O {[%clk 0:03:00]} 5. a3 {[%clk 0:03:03]}  Bxc3+ {[%clk 0:03:00]} 6. bxc3 {[%clk 0:03:04]}  c5 {[%clk 0:02:58]} 7. Bd3 {[%clk 0:03:04]}  d5 {[%clk 0:02:55]} 8. cxd5 {[%clk 0:03:04]}  Qxd5 {[%clk 0:02:54]} 9. f3 {[%clk 0:02:59]}  e5 {[%clk 0:02:52]} 10. e4 {[%clk 0:02:56]}  Qd6 {[%clk 0:02:51]} 11. d5 {[%clk 0:02:52]}  Rd8 {[%clk 0:02:41]} 12. c4 {[%clk 0:02:48]}  Nc6 {[%clk 0:02:38]} 13. Ne2 {[%clk 0:02:47]}  Nd4 {[%clk 0:02:36]} 14. O-O {[%clk 0:02:37]}  b6 {[%clk 0:02:31]} 15. a4 {[%clk 0:02:37]}  Ba6 {[%clk 0:02:28]} 16. Nc3 {[%clk 0:02:05]}  Qe7 {[%clk 0:02:13]} 17. Nb5 {[%clk 0:02:04]}  Ne8 {[%clk 0:02:04]} 18. Ba3 {[%clk 0:01:55]}  Bxb5 {[%clk 0:01:29]} 19. axb5 {[%clk 0:01:44]}  Nd6 {[%clk 0:01:29]} 20. Bb2 {[%clk 0:01:37]}  Qc7 {[%clk 0:00:54]} 21. Ra6 {[%clk 0:01:35]}  Rab8 {[%clk 0:00:49]} 22. Qa4 {[%clk 0:01:34]}  Nc8 {[%clk 0:00:49]} 23. Bc3 {[%clk 0:01:22]}  Rb7 {[%clk 0:00:45]} 24. Qa2 {[%clk 0:01:19]}  Qe7 {[%clk 0:00:43]} 25. g3 {[%clk 0:01:15]}  Qg5 {[%clk 0:00:38]} 26. Bd2 {[%clk 0:01:06]}  Qh5 {[%clk 0:00:37]} 27. Kg2 {[%clk 0:01:03]}  Rc7 {[%clk 0:00:35]} 28. Be3 {[%clk 0:00:58]}  Rf8 {[%clk 0:00:25]} 29. Qf2 {[%clk 0:00:59]}  Nd6 {[%clk 0:00:23]} 30. f4 {[%clk 0:00:54]}  exf4 {[%clk 0:00:02]} 31. gxf4 {[%clk 0:00:54]}  Re8 {[%clk 0:00:02]} 32. e5 {[%clk 0:00:52]}  N6f5 {[%clk 0:00:02]} 33. Bxd4 {[%clk 0:00:48]}  Nxd4 {[%clk 0:00:01]} 34. Qg3 {[%clk 0:00:40]}  f6 {[%clk 0:00:02]} 35. e6 {[%clk 0:00:37]}  Rce7 {[%clk 0:00:02]} 36. f5 {[%clk 0:00:35]}  Rd8 {[%clk 0:00:02]} 37. d6 {[%clk 0:00:31]}  Rb7 {[%clk 0:00:02]} 38. Ra2 {[%clk 0:00:26]}  Kh8 {[%clk 0:00:02]} 39. d7 {[%clk 0:00:20]}  Rc7 {[%clk 0:00:01]} 1-0


[Site "https://www.chess.com"]

[Event "Titled Tuesday Blitz August 15 Late 2023"]
[White "Hristodoulou, Panagiotis"]
[Black "Hua, Lefong"]
[WhiteFideId "4214340"]
[BlackFideId "2602253"]
[WhiteElo "2521"]
[BlackElo "2713"]
[Result "0-1"]
[Round "10"]
[TimeControl "180+1"]
[Date "2023.08.15"]
[WhiteClock "0:00:05"]
[BlackClock "0:00:14"]
[Board "25"]

1. d4 {[%clk 0:03:00]}  Nf6 {[%clk 0:03:00]} 2. Nc3 {[%clk 0:03:01]}  d5 {[%clk 0:02:59]} 3. Bf4 {[%clk 0:03:02]}  g6 {[%clk 0:03:00]} 4. e3 {[%clk 0:03:00]}  Bg7 {[%clk 0:02:57]} 5. Nf3 {[%clk 0:03:00]}  O-O {[%clk 0:02:55]} 6. h3 {[%clk 0:03:01]}  c5 {[%clk 0:02:54]} 7. Nb5 {[%clk 0:03:00]}  Na6 {[%clk 0:02:38]} 8. c3 {[%clk 0:02:58]}  b6 {[%clk 0:02:33]} 9. a4 {[%clk 0:02:53]}  Bb7 {[%clk 0:02:28]} 10. Be2 {[%clk 0:02:45]}  Ne4 {[%clk 0:02:22]} 11. O-O {[%clk 0:02:40]}  Nd6 {[%clk 0:02:09]} 12. Be5 {[%clk 0:01:37]}  Nc7 {[%clk 0:01:57]} 13. Bxg7 {[%clk 0:01:19]}  Kxg7 {[%clk 0:01:57]} 14. Nxc7 {[%clk 0:01:20]}  Qxc7 {[%clk 0:01:57]} 15. b4 {[%clk 0:01:17]}  Ne4 {[%clk 0:01:48]} 16. Qb3 {[%clk 0:01:12]}  c4 {[%clk 0:01:43]} 17. Qc2 {[%clk 0:01:08]}  Bc8 {[%clk 0:01:41]} 18. Nd2 {[%clk 0:00:59]}  Bf5 {[%clk 0:01:29]} 19. Nxe4 {[%clk 0:01:00]}  Bxe4 {[%clk 0:01:28]} 20. Qd1 {[%clk 0:01:01]}  Bf5 {[%clk 0:01:09]} 21. Bf3 {[%clk 0:00:53]}  Rad8 {[%clk 0:01:08]} 22. Re1 {[%clk 0:00:53]}  Be4 {[%clk 0:01:05]} 23. a5 {[%clk 0:00:49]}  b5 {[%clk 0:01:04]} 24. a6 {[%clk 0:00:46]}  Bxf3 {[%clk 0:00:55]} 25. Qxf3 {[%clk 0:00:47]}  f5 {[%clk 0:00:52]} 26. Qf4 {[%clk 0:00:41]}  e5 {[%clk 0:00:44]} 27. Qxe5+ {[%clk 0:00:38]}  Qxe5 {[%clk 0:00:43]} 28. dxe5 {[%clk 0:00:39]}  Kf7 {[%clk 0:00:43]} 29. f4 {[%clk 0:00:39]}  Ke6 {[%clk 0:00:40]} 30. Kf2 {[%clk 0:00:36]}  Rb8 {[%clk 0:00:39]} 31. g4 {[%clk 0:00:35]}  Rb6 {[%clk 0:00:38]} 32. Rg1 {[%clk 0:00:30]}  Rc8 {[%clk 0:00:27]} 33. gxf5+ {[%clk 0:00:17]}  Kxf5 {[%clk 0:00:28]} 34. Rg5+ {[%clk 0:00:17]}  Ke6 {[%clk 0:00:28]} 35. h4 {[%clk 0:00:17]}  Rcc6 {[%clk 0:00:20]} 36. h5 {[%clk 0:00:16]}  Kf7 {[%clk 0:00:17]} 37. hxg6+ {[%clk 0:00:13]}  hxg6 {[%clk 0:00:18]} 38. Ra5 {[%clk 0:00:07]}  Rxa6 {[%clk 0:00:16]} 39. Rxb5 {[%clk 0:00:07]}  Ra2+ {[%clk 0:00:16]} 40. Kf3 {[%clk 0:00:08]}  Rc2 {[%clk 0:00:16]} 41. Rb7+ {[%clk 0:00:08]}  Kg8 {[%clk 0:00:15]} 42. f5 {[%clk 0:00:05]}  Rxc3 {[%clk 0:00:15]} 43. Kf4 {[%clk 0:00:06]}  Rc1 {[%clk 0:00:12]} 44. Rxg6+ {[%clk 0:00:06]}  Rxg6 {[%clk 0:00:11]} 45. fxg6 {[%clk 0:00:07]}  c3 {[%clk 0:00:12]} 46. Rc7 {[%clk 0:00:06]}  c2 {[%clk 0:00:12]} 47. Kf5 {[%clk 0:00:05]}  Rf1+ {[%clk 0:00:12]} 48. Ke6 {[%clk 0:00:05]}  c1=Q {[%clk 0:00:12]} 49. Rxc1 {[%clk 0:00:06]}  Rxc1 {[%clk 0:00:13]} 50. Ke7 {[%clk 0:00:07]}  Rb1 {[%clk 0:00:12]} 51. e6 {[%clk 0:00:07]}  Rxb4 {[%clk 0:00:13]} 52. Kd8 {[%clk 0:00:07]}  Rb7 {[%clk 0:00:12]} 53. e7 {[%clk 0:00:07]}  Rxe7 {[%clk 0:00:13]} 54. Kxe7 {[%clk 0:00:08]}  a5 {[%clk 0:00:13]} 55. Kd6 {[%clk 0:00:07]}  a4 {[%clk 0:00:14]} 56. Kxd5 {[%clk 0:00:05]}  a3 {[%clk 0:00:14]} 0-1


[Site "https://www.chess.com"]

[Event "Titled Tuesday Blitz August 15 Late 2023"]
[White "Krishnan, Varun"]
[Black "Lysyj, Igor"]
[WhiteFideId "5054508"]
[BlackFideId "4150120"]
[WhiteElo "2600"]
[BlackElo "2856"]
[Result "1-0"]
[Round "10"]
[TimeControl "180+1"]
[Date "2023.08.15"]
[WhiteClock "0:00:09"]
[BlackClock "0:00:02"]
[Board "26"]

1. d4 {[%clk 0:03:00]}  d5 {[%clk 0:02:59]} 2. c4 {[%clk 0:02:59]}  e6 {[%clk 0:02:59]} 3. Nc3 {[%clk 0:02:59]}  c5 {[%clk 0:02:59]} 4. cxd5 {[%clk 0:02:56]}  exd5 {[%clk 0:02:59]} 5. Nf3 {[%clk 0:02:55]}  Nc6 {[%clk 0:02:59]} 6. g3 {[%clk 0:02:54]}  Nf6 {[%clk 0:02:58]} 7. Bg2 {[%clk 0:02:54]}  cxd4 {[%clk 0:02:58]} 8. Nxd4 {[%clk 0:02:53]}  Bc5 {[%clk 0:02:58]} 9. Nxc6 {[%clk 0:02:42]}  bxc6 {[%clk 0:02:58]} 10. O-O {[%clk 0:02:42]}  O-O {[%clk 0:02:57]} 11. e4 {[%clk 0:02:37]}  Ba6 {[%clk 0:02:43]} 12. Re1 {[%clk 0:02:34]}  Qb6 {[%clk 0:02:41]} 13. Be3 {[%clk 0:02:10]}  Bxe3 {[%clk 0:02:38]} 14. Rxe3 {[%clk 0:02:10]}  d4 {[%clk 0:02:22]} 15. Na4 {[%clk 0:02:09]}  Qa5 {[%clk 0:02:23]} 16. Ra3 {[%clk 0:02:05]}  Rfd8 {[%clk 0:02:15]} 17. Rc1 {[%clk 0:01:57]}  Qe5 {[%clk 0:01:01]} 18. Nc5 {[%clk 0:01:40]}  Bb5 {[%clk 0:01:01]} 19. Rb3 {[%clk 0:01:38]}  Nd7 {[%clk 0:00:57]} 20. f4 {[%clk 0:01:20]}  Qe7 {[%clk 0:00:54]} 21. Nb7 {[%clk 0:01:08]}  Nb6 {[%clk 0:00:41]} 22. Nxd8 {[%clk 0:00:45]}  Rxd8 {[%clk 0:00:41]} 23. Qd2 {[%clk 0:00:41]}  Nc4 {[%clk 0:00:36]} 24. Qb4 {[%clk 0:00:39]}  Qe6 {[%clk 0:00:12]} 25. f5 {[%clk 0:00:29]}  a5 {[%clk 0:00:11]} 26. fxe6 {[%clk 0:00:27]}  axb4 {[%clk 0:00:11]} 27. exf7+ {[%clk 0:00:28]}  Kxf7 {[%clk 0:00:11]} 28. Rxb4 {[%clk 0:00:25]}  Ne3 {[%clk 0:00:11]} 29. a4 {[%clk 0:00:23]}  Be2 {[%clk 0:00:09]} 30. Kf2 {[%clk 0:00:19]}  Bh5 {[%clk 0:00:09]} 31. Bf3 {[%clk 0:00:18]}  Bg6 {[%clk 0:00:08]} 32. Rxc6 {[%clk 0:00:14]}  Ke7 {[%clk 0:00:06]} 33. Rb7+ {[%clk 0:00:13]}  Rd7 {[%clk 0:00:06]} 34. Rcc7 {[%clk 0:00:12]}  Rxc7 {[%clk 0:00:06]} 35. Rxc7+ {[%clk 0:00:13]}  Kd6 {[%clk 0:00:06]} 36. Rxg7 {[%clk 0:00:13]}  Nc4 {[%clk 0:00:06]} 37. b4 {[%clk 0:00:11]}  Ne5 {[%clk 0:00:05]} 38. a5 {[%clk 0:00:10]}  Nc6 {[%clk 0:00:02]} 39. a6 {[%clk 0:00:09]} 1-0


[Site "https://www.chess.com"]

[Event "Titled Tuesday Blitz August 15 Late 2023"]
[White "Gubajdullin, Alexei"]
[Black "Deng, Henry"]
[WhiteFideId "4141202"]
[BlackFideId "30965454"]
[WhiteElo "2690"]
[BlackElo "2545"]
[Result "1-0"]
[Round "10"]
[TimeControl "180+1"]
[Date "2023.08.15"]
[WhiteClock "0:00:20"]
[BlackClock "0:00:00"]
[Board "30"]

1. d4 {[%clk 0:02:59]}  d5 {[%clk 0:02:59]} 2. Nf3 {[%clk 0:02:59]}  Nf6 {[%clk 0:02:59]} 3. Bf4 {[%clk 0:02:59]}  c5 {[%clk 0:02:57]} 4. e3 {[%clk 0:03:00]}  Nc6 {[%clk 0:02:54]} 5. Nbd2 {[%clk 0:02:59]}  Bf5 {[%clk 0:02:46]} 6. c3 {[%clk 0:02:59]}  Qb6 {[%clk 0:02:46]} 7. dxc5 {[%clk 0:02:50]}  Qxb2 {[%clk 0:02:46]} 8. Nd4 {[%clk 0:02:49]}  Bd7 {[%clk 0:02:31]} 9. Nb5 {[%clk 0:02:47]}  e5 {[%clk 0:02:21]} 10. Bg5 {[%clk 0:02:35]}  Bxc5 {[%clk 0:01:50]} 11. Rb1 {[%clk 0:02:33]}  Qxa2 {[%clk 0:01:50]} 12. Nc7+ {[%clk 0:02:28]}  Ke7 {[%clk 0:01:50]} 13. Nxa8 {[%clk 0:02:26]}  Rxa8 {[%clk 0:01:49]} 14. Rxb7 {[%clk 0:02:25]}  Rb8 {[%clk 0:01:39]} 15. Bxf6+ {[%clk 0:01:59]}  gxf6 {[%clk 0:01:37]} 16. Rxb8 {[%clk 0:01:56]}  Nxb8 {[%clk 0:01:38]} 17. Bd3 {[%clk 0:01:47]}  e4 {[%clk 0:01:27]} 18. Be2 {[%clk 0:01:45]}  Nc6 {[%clk 0:01:07]} 19. O-O {[%clk 0:01:42]}  f5 {[%clk 0:00:58]} 20. Nb3 {[%clk 0:01:39]}  Bd6 {[%clk 0:00:42]} 21. c4 {[%clk 0:01:18]}  dxc4 {[%clk 0:00:33]} 22. Bxc4 {[%clk 0:01:18]}  Qb2 {[%clk 0:00:31]} 23. Qd5 {[%clk 0:01:09]}  Qf6 {[%clk 0:00:19]} 24. Bb5 {[%clk 0:01:01]}  Ne5 {[%clk 0:00:18]} 25. Bxd7 {[%clk 0:00:57]}  Nxd7 {[%clk 0:00:14]} 26. Nd4 {[%clk 0:00:55]}  Ne5 {[%clk 0:00:14]} 27. Rb1 {[%clk 0:00:52]}  Kf8 {[%clk 0:00:14]} 28. h3 {[%clk 0:00:50]}  Kg7 {[%clk 0:00:14]} 29. Rb7 {[%clk 0:00:44]}  Kg6 {[%clk 0:00:14]} 30. Rxa7 {[%clk 0:00:41]}  Bf8 {[%clk 0:00:06]} 31. Qb5 {[%clk 0:00:26]}  Bd6 {[%clk 0:00:01]} 32. Ra6 {[%clk 0:00:25]}  Kh5 {[%clk 0:00:02]} 33. Qd5 {[%clk 0:00:24]}  Nf3+ {[%clk 0:00:01]} 34. gxf3 {[%clk 0:00:22]}  Qg5+ {[%clk 0:00:01]} 35. Kf1 {[%clk 0:00:21]}  Bh2 {[%clk 0:00:01]} 36. Qxf5 {[%clk 0:00:20]}  exf3 {[%clk 0:00:01]} 37. Qxg5+ {[%clk 0:00:20]}  Kxg5 {[%clk 0:00:00]} 38. Nxf3+ {[%clk 0:00:20]} 1-0


[Site "https://www.chess.com"]

[Event "Titled Tuesday Blitz August 15 Late 2023"]
[White "Peycheva, Gergana"]
[Black "Caspi, Israel"]
[WhiteFideId "2916711"]
[BlackFideId "2807394"]
[WhiteElo "2523"]
[BlackElo "2605"]
[Result "1-0"]
[Round "10"]
[TimeControl "180+1"]
[Date "2023.08.15"]
[WhiteClock "0:00:08"]
[BlackClock "0:01:10"]
[Board "34"]

1. d4 {[%clk 0:03:00]}  Nf6 {[%clk 0:02:58]} 2. c4 {[%clk 0:02:57]}  e6 {[%clk 0:02:56]} 3. Nc3 {[%clk 0:02:53]}  Bb4 {[%clk 0:02:53]} 4. Qc2 {[%clk 0:02:51]}  d5 {[%clk 0:02:48]} 5. cxd5 {[%clk 0:02:50]}  exd5 {[%clk 0:02:49]} 6. Nf3 {[%clk 0:02:43]}  c5 {[%clk 0:02:46]} 7. Bg5 {[%clk 0:02:39]}  Nc6 {[%clk 0:02:45]} 8. e3 {[%clk 0:02:33]}  h6 {[%clk 0:02:44]} 9. Bh4 {[%clk 0:02:18]}  g5 {[%clk 0:02:43]} 10. Bg3 {[%clk 0:02:18]}  Ne4 {[%clk 0:02:43]} 11. Bd3 {[%clk 0:02:03]}  Bf5 {[%clk 0:02:42]} 12. O-O {[%clk 0:02:02]}  Bxc3 {[%clk 0:02:37]} 13. bxc3 {[%clk 0:01:55]}  c4 {[%clk 0:02:37]} 14. Bxe4 {[%clk 0:01:49]}  Bxe4 {[%clk 0:02:38]} 15. Qb2 {[%clk 0:01:49]}  Qe7 {[%clk 0:02:28]} 16. Ne5 {[%clk 0:01:37]}  f6 {[%clk 0:02:23]} 17. Nxc6 {[%clk 0:01:26]}  bxc6 {[%clk 0:02:24]} 18. f3 {[%clk 0:01:27]}  Bd3 {[%clk 0:02:24]} 19. Rfe1 {[%clk 0:01:27]}  h5 {[%clk 0:02:22]} 20. h3 {[%clk 0:01:25]}  h4 {[%clk 0:02:22]} 21. Bh2 {[%clk 0:01:25]}  O-O {[%clk 0:02:21]} 22. e4 {[%clk 0:01:22]}  Rfe8 {[%clk 0:02:12]} 23. e5 {[%clk 0:01:18]}  f5 {[%clk 0:02:12]} 24. e6 {[%clk 0:01:17]}  f4 {[%clk 0:02:12]} 25. Re5 {[%clk 0:01:14]}  Rab8 {[%clk 0:02:09]} 26. Qd2 {[%clk 0:01:01]}  Qf6 {[%clk 0:01:58]} 27. Rae1 {[%clk 0:00:59]}  Re7 {[%clk 0:01:55]} 28. Kh1 {[%clk 0:00:59]}  Kg7 {[%clk 0:01:48]} 29. Rxg5+ {[%clk 0:00:39]}  Qxg5 {[%clk 0:01:43]} 30. Bxf4 {[%clk 0:00:38]}  Qf5 {[%clk 0:01:32]} 31. Bxb8 {[%clk 0:00:34]}  Rxe6 {[%clk 0:01:33]} 32. Rxe6 {[%clk 0:00:31]}  Qxe6 {[%clk 0:01:33]} 33. Qg5+ {[%clk 0:00:30]}  Bg6 {[%clk 0:01:32]} 34. Qxh4 {[%clk 0:00:25]}  c5 {[%clk 0:01:26]} 35. Be5+ {[%clk 0:00:21]}  Kf7 {[%clk 0:01:26]} 36. Qh8 {[%clk 0:00:21]}  cxd4 {[%clk 0:01:25]} 37. Qg7+ {[%clk 0:00:18]}  Ke8 {[%clk 0:01:24]} 38. Bxd4 {[%clk 0:00:19]}  a6 {[%clk 0:01:24]} 39. Kh2 {[%clk 0:00:18]}  Bb1 {[%clk 0:01:22]} 40. h4 {[%clk 0:00:13]}  Bxa2 {[%clk 0:01:22]} 41. h5 {[%clk 0:00:13]}  Bb1 {[%clk 0:01:22]} 42. h6 {[%clk 0:00:13]}  Qf5 {[%clk 0:01:19]} 43. Bc5 {[%clk 0:00:10]}  Qf7 {[%clk 0:01:14]} 44. Qe5+ {[%clk 0:00:08]}  Kd7 {[%clk 0:01:12]} 45. Qd6+ {[%clk 0:00:08]}  Ke8 {[%clk 0:01:10]} 46. Qb8+ {[%clk 0:00:08]}  Kd7 {[%clk 0:01:10]} 47. Qxb1 {[%clk 0:00:08]}  Qh5+ {[%clk 0:01:10]} 48. Kg1 {[%clk 0:00:08]}  Qxh6 {[%clk 0:01:11]} 49. Qb7+ {[%clk 0:00:08]}  Kd8 {[%clk 0:01:10]} 50. Qe7+ {[%clk 0:00:07]}  Kc8 {[%clk 0:01:11]} 51. Qe8+ {[%clk 0:00:07]}  Kb7 {[%clk 0:01:10]} 52. Qd7+ {[%clk 0:00:08]}  Kb8 {[%clk 0:01:11]} 53. Bd6+ {[%clk 0:00:07]}  Ka8 {[%clk 0:01:10]} 54. Qc8+ {[%clk 0:00:07]}  Ka7 {[%clk 0:01:10]} 55. Qc7+ {[%clk 0:00:07]}  Ka8 {[%clk 0:01:10]} 56. Qb8# {[%clk 0:00:08]} 1-0


[Site "https://www.chess.com"]

[Event "Titled Tuesday Blitz August 15 Late 2023"]
[White "NigelDwarf"]
[Black "Altman, Joshua"]
[BlackFideId "426210"]
[WhiteElo "2512"]
[BlackElo "2603"]
[Result "0-1"]
[Round "10"]
[TimeControl "180+1"]
[Date "2023.08.15"]
[WhiteClock "0:00:01"]
[BlackClock "0:00:13"]
[Board "35"]

1. Nf3 {[%clk 0:03:00]}  Nf6 {[%clk 0:02:59]} 2. c4 {[%clk 0:03:00]}  e6 {[%clk 0:02:57]} 3. Nc3 {[%clk 0:03:00]}  Bb4 {[%clk 0:02:55]} 4. g4 {[%clk 0:03:00]}  h6 {[%clk 0:02:40]} 5. Rg1 {[%clk 0:02:56]}  d5 {[%clk 0:02:35]} 6. e3 {[%clk 0:02:43]}  O-O {[%clk 0:02:17]} 7. h4 {[%clk 0:02:40]}  Ne4 {[%clk 0:01:58]} 8. g5 {[%clk 0:02:37]}  h5 {[%clk 0:01:53]} 9. a3 {[%clk 0:02:28]}  Bxc3 {[%clk 0:01:51]} 10. dxc3 {[%clk 0:02:21]}  dxc4 {[%clk 0:01:46]} 11. Qc2 {[%clk 0:02:19]}  Qd5 {[%clk 0:01:38]} 12. Bd2 {[%clk 0:01:45]}  Nc5 {[%clk 0:01:23]} 13. Nd4 {[%clk 0:01:31]}  e5 {[%clk 0:01:23]} 14. Bg2 {[%clk 0:01:03]}  Qd6 {[%clk 0:01:11]} 15. Nb5 {[%clk 0:00:59]}  Nd3+ {[%clk 0:01:07]} 16. Kf1 {[%clk 0:00:57]}  Qb6 {[%clk 0:01:04]} 17. a4 {[%clk 0:00:55]}  c6 {[%clk 0:00:57]} 18. Nd6 {[%clk 0:00:50]}  Be6 {[%clk 0:00:50]} 19. Rb1 {[%clk 0:00:30]}  Qc7 {[%clk 0:00:33]} 20. Ne4 {[%clk 0:00:28]}  Nd7 {[%clk 0:00:29]} 21. Bf3 {[%clk 0:00:21]}  g6 {[%clk 0:00:28]} 22. b3 {[%clk 0:00:19]}  b5 {[%clk 0:00:26]} 23. axb5 {[%clk 0:00:17]}  cxb5 {[%clk 0:00:27]} 24. Nf6+ {[%clk 0:00:16]}  Nxf6 {[%clk 0:00:27]} 25. gxf6 {[%clk 0:00:16]}  Rad8 {[%clk 0:00:25]} 26. b4 {[%clk 0:00:13]}  Kh8 {[%clk 0:00:22]} 27. Rg5 {[%clk 0:00:12]}  e4 {[%clk 0:00:17]} 28. Bxh5 {[%clk 0:00:11]}  Qh2 {[%clk 0:00:13]} 29. Rg2 {[%clk 0:00:01]}  Bh3 {[%clk 0:00:13]} 0-1


[Site "https://www.chess.com"]